fUST/lending_fUST_20240410
["ID","MTS","AMOUNT","RATE_DAILY","PERIOD"]
[322039653,1712713838754,-500.0,0.00021917,2]
[322039654,1712713838763,-502.72109709,0.00021917,2]
[322039657,1712713838773,-500.0,0.00021917,2]
[322039659,1712713838782,-522.4,0.00021917,2]
[322039661,1712713838791,-507.47600834,0.00021917,2]
[322039663,1712713838802,-500.0,0.00021917,2]
[322039665,1712713838810,-500.0,0.00021917,2]
[322039667,1712713838820,-500.0,0.00021917,2]
[322039669,1712713838830,-500.0,0.00021917,2]
[322039671,1712713838839,-500.0,0.00021917,2]
[322039673,1712713838849,-500.0,0.00021917,2]
[322039675,1712713838859,-500.0,0.00021917,2]
[322039677,1712713838873,-500.0,0.00021917,2]
[322039679,1712713838882,-500.0,0.00021917,2]
[322039681,1712713838891,-500.0,0.00021917,2]
[322039683,1712713838900,-501.61083213,0.00021917,2]
[322039685,1712713838910,-640.77,0.00021917,2]
[322039687,1712713838919,-503.42253692,0.00021917,2]
[322039689,1712713838929,-502.51844573,0.00021917,2]
[322039691,1712713838938,-500.0,0.00021917,2]
[322039693,1712713838947,-500.0,0.00021917,2]
[322039695,1712713838956,-500.0,0.00021917,2]
[322039697,1712713838965,-500.0,0.00021917,2]
[322039699,1712713838975,-500.0,0.00021917,2]
[322039701,1712713838983,-311.46888922,0.00021917,2]
[322039703,1712713838993,-674.79,0.00021917,2]
[322039705,1712713839003,-917.47,0.00021917,2]
[322039707,1712713839012,-509.99280352,0.00021917,2]
[322039709,1712713839020,-510.85,0.00021917,2]
[322039711,1712713839030,-751.55,0.00021917,2]
[322039713,1712713839038,-732.37,0.00021917,2]
[322039715,1712713839048,-478.32587109,0.00021917,2]
[322039717,1712713839057,-500.0,0.00021917,2]
[322039719,1712713839067,-503.22036321,0.00021917,2]
[322039721,1712713839076,-500.0,0.00021917,2]
[322039723,1712713839085,-500.0,0.00021917,2]
[322039725,1712713839094,-504.3923525,0.00021917,2]
[322039727,1712713839103,-2365.23,0.00021917,2]
[322039729,1712713839112,-500.0,0.00021917,2]
[322039730,1712713839121,-1178.74,0.00021917,2]
[322039732,1712713839130,-500.0,0.00021917,2]
[322039735,1712713839139,-500.0,0.00021917,2]
[322039737,1712713839148,-734.7,0.00021917,2]
[322039739,1712713839158,-1169.42,0.00021917,2]
[322039741,1712713839167,-1153.08,0.00021917,2]
[322039743,1712713839176,-626.23,0.00021917,2]
[322039744,1712713839185,-2678.85,0.00021917,2]
[322039746,1712713839194,-500.0,0.00021917,2]
[322039748,1712713839203,-1262.83,0.00021917,2]
[322039750,1712713839212,-367.65946424,0.00021917,2]
[322039752,1712713839221,-500.0,0.00021917,2]
[322039754,1712713839230,-500.0,0.00021917,2]
[322039756,1712713839239,-500.0,0.00021917,2]
[322039758,1712713839248,-500.0,0.00021917,2]
[322039760,1712713839257,-500.0,0.00021917,2]
[322039762,1712713839266,-569.13416962,0.00021917,2]
[322039764,1712713839275,-500.0,0.00021917,2]
[322039766,1712713839284,-428.58653235,0.00021917,2]
[322039768,1712713839294,-876.86,0.00021917,2]
[322039771,1712713839303,-1007.79,0.00021917,2]
[322039773,1712713839312,-554.0,0.00021917,2]
[322039775,1712713839321,-539.83112468,0.00021917,2]
[322039777,1712713839330,-500.0,0.00021917,2]
[322039779,1712713839339,-740.16,0.00021917,2]
[322039781,1712713839348,-4154.44,0.00021917,2]
[322039783,1712713839357,-506.37580024,0.00021917,2]
[322039784,1712713839366,-500.0,0.00021917,2]
[322039786,1712713839375,-504.84781134,0.00021917,2]
[322039788,1712713839384,-694.97,0.00021917,2]
[322039790,1712713839395,-500.0,0.00021917,2]
[322039792,1712713839405,-501.65557208,0.00021917,2]
[322039795,1712713839414,-500.0,0.00021917,2]
[322039797,1712713839423,-641.10681484,0.00021917,2]
[322039799,1712713839432,-2058.39,0.00021917,2]
[322039801,1712713839442,-500.0,0.00021917,2]
[322039803,1712713839451,-500.0,0.00021917,2]
[322039805,1712713839460,-500.0,0.00021917,2]
[322039807,1712713839469,-500.0,0.00021917,2]
[322039809,1712713839479,-942.66,0.00021917,2]
[322039811,1712713839489,-504.64723377,0.00021917,2]
[322039813,1712713839497,-433.66049752,0.00021917,2]
[322039815,1712713839506,-500.0,0.00021917,2]
[322039817,1712713839515,-500.0,0.00021917,2]
[322039819,1712713839524,-500.0,0.00021917,2]
[322039821,1712713839534,-502.8460882,0.00021917,2]
[322039823,1712713839543,-500.0,0.00021917,2]
[322039825,1712713839551,-500.0,0.00021917,2]
[322039827,1712713839560,-500.0,0.00021917,2]
[322039829,1712713839571,-505.76983174,0.00021917,2]
[322039831,1712713839580,-1489.96,0.00021917,2]
[322039833,1712713839590,-502.45048735,0.00021917,2]
[322039835,1712713839599,-563.50987167,0.00021917,2]
[322039837,1712713839608,-500.0,0.00021917,2]
[322039839,1712713839616,-7963.74,0.00021917,2]
[322039841,1712713839626,-500.0,0.00021917,2]
[322039843,1712713839635,-500.0,0.00021917,2]
[322039845,1712713839645,-207.81157313,0.00021917,2]
[322039847,1712713839655,-504.06903233,0.00021917,2]
[322039849,1712713839664,-2660.44,0.00021917,2]
[322039851,1712713839673,-500.0,0.00021917,2]
[322039853,1712713839682,-500.0,0.00021917,2]
[322039855,1712713839692,-1867.66,0.00021917,2]
[322039857,1712713839701,-2438.57,0.00021917,2]
[322039859,1712713839711,-23163.16,0.00021917,2]
[322039861,1712713839720,-500.0,0.00021917,2]
[322039863,1712713839730,-500.0,0.00021917,2]
[322039865,1712713839739,-500.0,0.00021917,2]
[322039867,1712713839749,-4211.3,0.00021917,2]
[322039869,1712713839758,-895.69,0.00021917,2]
[322039871,1712713839767,-1171.79,0.00021917,2]
[322039873,1712713839777,-587.33,0.00021917,2]
[322039875,1712713839786,-604.53256044,0.00021917,2]
[322039877,1712713839795,-500.0,0.00021917,2]
[322039879,1712713839805,-551.17,0.00021917,2]
[322039881,1712713839815,-727.01,0.00021917,2]
[322039883,1712713839824,-500.0,0.00021917,2]
[322039885,1712713839834,-500.0,0.00021917,2]
[322039887,1712713839844,-501.32595177,0.00021917,2]
[322039889,1712713839854,-515.76731302,0.00021917,2]
[322039891,1712713839864,-500.0,0.00021917,2]
[322039893,1712713839874,-447.58491367,0.00021917,2]
[322039895,1712713839883,-500.0,0.00021917,2]
[322039897,1712713839892,-500.0,0.00021917,2]
[322039899,1712713839902,-500.0,0.00021917,2]
[322039901,1712713839912,-503.94137622,0.00021917,2]
[322039903,1712713839922,-500.0,0.00021917,2]
[322039904,1712713839931,-4076.7,0.00021917,2]
[322039905,1712713839941,-504.95897543,0.00021917,2]
[322039906,1712713839950,-1346.46,0.00021917,2]
[322039907,1712713839959,-25242.55,0.00021917,2]
[322039908,1712713839969,-500.0,0.00021917,2]
[322039909,1712713839978,-500.0,0.00021917,2]
[322039910,1712713839988,-500.0,0.00021917,2]
[322039911,1712713839998,-3946.65,0.00021917,2]
[322039912,1712713840008,-2817.03,0.00021917,2]
[322039913,1712713840017,-500.0,0.00021917,2]
[322039914,1712713840026,-500.0,0.00021917,2]
[322039915,1712713840036,-5126.75,0.00021917,2]
[322039916,1712713840046,-2126.98,0.00021917,2]
[322039917,1712713840056,-503.42551836,0.00021917,2]
[322039918,1712713840065,-500.0,0.00021917,2]
[322039919,1712713840075,-506.7451759,0.00021917,2]
[322039920,1712713840084,-1412.53,0.00021917,2]
[322039921,1712713840094,-896.71,0.00021917,2]
[322039922,1712713840103,-517.78,0.00021917,2]
[322039923,1712713840112,-500.0,0.00021917,2]
[322039924,1712713840122,-248.45908726,0.00021917,2]
[322039925,1712713840131,-500.0,0.00021917,2]
[322039926,1712713840142,-500.0,0.00021917,2]
[322039927,1712713840151,-505.18303286,0.00021917,2]
[322039928,1712713840162,-1779.15,0.00021917,2]
[322039929,1712713840172,-500.0,0.00021917,2]
[322039930,1712713840181,-500.0,0.00021917,2]
[322039931,1712713840190,-500.0,0.00021917,2]
[322039932,1712713840200,-500.0,0.00021917,2]
[322039934,1712713840209,-207.23266716,0.00021917,2]
[322039935,1712713840218,-561.54178224,0.00021917,2]
[322039936,1712713840227,-3102.45,0.00021917,2]
[322039937,1712713840237,-501.66427378,0.00021917,2]
[322039938,1712713840246,-500.0,0.00021917,2]
[322039939,1712713840255,-500.0,0.00021917,2]
[322039940,1712713840264,-4520.79,0.00021917,2]
[322039941,1712713840273,-8740.37,0.00021917,2]
[322039942,1712713840283,-516.83,0.00021917,2]
[322039943,1712713840292,-1709.21,0.00021917,2]
[322039944,1712713840301,-2939.98,0.00021917,2]
[322039945,1712713840311,-500.0,0.00021917,2]
[322039946,1712713840320,-155.68446936,0.00021917,2]
[322039947,1712713840329,-8418.71,0.00021917,2]
[322039948,1712713840338,-457.29904079,0.00021917,2]
[322039949,1712713840348,-3816.3,0.00021917,2]
[322039950,1712713840357,-400.0,0.00021918,2]
[322039951,1712713840367,-427.50490754,0.00021954,2]
[322039952,1712713840377,-3719.10840679,0.00022,2]
[322039953,1712713840387,-427.50490754,0.00022023,2]
[322039954,1712713840398,-427.50490754,0.00022091,2]
[322039955,1712713840409,-202.7418102,0.00022175,2]
[322039956,1712713840418,-202.7418102,0.00022175,2]
[322039957,1712713840427,-500.0,0.00022191,2]
[322039958,1712713840438,-451.64015588,0.00022191,2]
[322039959,1712713840447,-954.71,0.00022191,2]
[322039960,1712713840456,-500.0,0.00022191,2]
[322039961,1712713840465,-598.39,0.00022191,2]
[322039962,1712713840478,-506.50042806,0.00022191,2]
[322039963,1712713840488,-500.0,0.00022191,2]
[322039964,1712713840497,-500.0,0.00022191,2]
[322039965,1712713840506,-500.0,0.00022191,2]
[322039966,1712713840515,-500.0,0.00022191,2]
[322039967,1712713840524,-531.22,0.00022191,2]
[322039968,1712713840534,-1511.38,0.00022191,2]
[322039969,1712713840542,-212.11918038,0.00022191,2]
[322039970,1712713840551,-500.0,0.00022191,2]
[322039971,1712713840560,-500.0,0.00022191,2]
[322039972,1712713840569,-500.0,0.00022191,2]
[322039973,1712713840578,-500.0,0.00022191,2]
[322039974,1712713840587,-1542.66,0.00022191,2]
[322039975,1712713840596,-500.0,0.00022191,2]
[322039976,1712713840605,-500.0,0.00022191,2]
[322039977,1712713840614,-500.0,0.00022191,2]
[322039978,1712713840623,-736.34,0.00022191,2]
[322039979,1712713840632,-655.56,0.00022191,2]
[322039980,1712713840642,-507.82,0.00022191,2]
[322039981,1712713840651,-387.364157,0.00022191,2]
[322039982,1712713840661,-282.52030964,0.00022191,2]
[322039983,1712713840671,-522.4,0.00022191,2]
[322039984,1712713840680,-500.0,0.00022191,2]
[322039985,1712713840689,-500.0,0.00022191,2]
[322039986,1712713840698,-500.0,0.00022191,2]
[322039987,1712713840707,-500.0,0.00022191,2]
[322039988,1712713840716,-500.0,0.00022191,2]
[322039989,1712713840726,-500.0,0.00022191,2]
[322039990,1712713840735,-500.0,0.00022191,2]
[322039991,1712713840744,-500.0,0.00022191,2]
[322039992,1712713840753,-500.0,0.00022191,2]
[322039993,1712713840762,-151.15889793,0.00022191,2]
[322039994,1712713840771,-640.77,0.00022191,2]
[322039995,1712713840780,-501.69244152,0.00022191,2]
[322039996,1712713840789,-500.0,0.00022191,2]
[322039997,1712713840798,-500.0,0.00022191,2]
[322039998,1712713840808,-609.12142481,0.00022191,2]
[322039999,1712713840817,-500.0,0.00022191,2]
[322040000,1712713840828,-674.79,0.00022191,2]
[322040001,1712713840837,-917.47,0.00022191,2]
[322040002,1712713840847,-510.85,0.00022191,2]
[322040003,1712713840857,-751.55,0.00022191,2]
[322040004,1712713840866,-732.37,0.00022191,2]
[322040005,1712713840876,-500.0,0.00022191,2]
[322040006,1712713840885,-500.0,0.00022191,2]
[322040007,1712713840894,-500.0,0.00022191,2]
[322040008,1712713840903,-2365.23,0.00022191,2]
[322040009,1712713840913,-500.0,0.00022191,2]
[322040010,1712713840922,-1178.74,0.00022191,2]
[322040011,1712713840931,-500.0,0.00022191,2]
[322040012,1712713840940,-500.0,0.00022191,2]
[322040013,1712713840950,-734.7,0.00022191,2]
[322040014,1712713840959,-1169.42,0.00022191,2]
[322040015,1712713840969,-1153.08,0.00022191,2]
[322040016,1712713840978,-626.23,0.00022191,2]
[322040017,1712713840987,-2678.85,0.00022191,2]
[322040018,1712713840996,-500.0,0.00022191,2]
[322040019,1712713841005,-1262.83,0.00022191,2]
[322040020,1712713841015,-365.80956703,0.00022191,2]
[322040021,1712713841024,-500.0,0.00022191,2]
[322040022,1712713841033,-257.0526673,0.00022191,2]
[322040023,1712713841043,-500.0,0.00022191,2]
[322040024,1712713841053,-415.14598064,0.00022191,2]
[322040025,1712713841062,-500.0,0.00022191,2]
[322040026,1712713841071,-876.86,0.00022191,2]
[322040027,1712713841080,-1007.79,0.00022191,2]
[322040028,1712713841090,-554.0,0.00022191,2]
[322040029,1712713841100,-611.41001067,0.00022191,2]
[322040030,1712713841109,-740.16,0.00022191,2]
[322040031,1712713841118,-4154.44,0.00022191,2]
[322040032,1712713841127,-500.0,0.00022191,2]
[322040033,1712713841226,-694.97,0.00022191,2]
[322040034,1712713841248,-500.0,0.00022191,2]
[322040035,1712713841257,-307.88566827,0.00022191,2]
[322040036,1712713841267,-2058.39,0.00022191,2]
[322040037,1712713841276,-504.23625961,0.00022191,2]
[322040038,1712713841285,-270.56145077,0.00022191,2]
[322040039,1712713841393,24900.0,0.00020619,2]
[322040046,1712713843045,-283.42171032,0.00021367,2]
[322040047,1712713843055,-478.97253102,0.00021369,2]
[322040048,1712713843066,-1210.46748417,0.00021369,2]
[322040049,1712713843080,-241.71528403,0.00021369,2]
[322040050,1712713843089,-524.8635464,0.00021369,2]
[322040051,1712713843098,-229.43854923,0.00022191,2]
[322040052,1712713843107,-500.0,0.00022191,2]
[322040054,1712713843116,-500.0,0.00022191,2]
[322040056,1712713843125,-942.66,0.00022191,2]
[322040057,1712713843134,-596.55194153,0.00022191,2]
[322040058,1712713843143,-500.0,0.00022191,2]
[322040059,1712713843151,-500.0,0.00022191,2]
[322040060,1712713843163,-500.0,0.00022191,2]
[322040061,1712713843172,-500.0,0.00022191,2]
[322040062,1712713843181,-191.626109,0.00022191,2]
[322040063,1712713843190,-1489.96,0.00022191,2]
[322040064,1712713843199,-500.0,0.00022191,2]
[322040065,1712713843208,-7963.74,0.00022191,2]
[322040066,1712713843217,-596.88521452,0.00022191,2]
[322040067,1712713843227,-284.51298921,0.00022191,2]
[322040068,1712713843237,-2660.44,0.00022191,2]
[322040069,1712713843246,-501.66992607,0.00022191,2]
[322040070,1712713843255,-160.9641931,0.00022191,2]
[322040071,1712713843268,-339.0358069,0.00022191,2]
[322040072,1712713843277,-1867.66,0.00022191,2]
[322040073,1712713843286,-2438.57,0.00022191,2]
[322040074,1712713843295,-23163.16,0.00022191,2]
[322040075,1712713843303,-500.0,0.00022191,2]
[322040076,1712713843313,-500.0,0.00022191,2]
[322040077,1712713843321,-504.50957057,0.00022191,2]
[322040078,1712713843330,-4211.3,0.00022191,2]
[322040079,1712713843339,-1171.79,0.00022191,2]
[322040080,1712713843348,-895.69,0.00022191,2]
[322040081,1712713843357,-587.33,0.00022191,2]
[322040082,1712713843366,-500.0,0.00022191,2]
[322040083,1712713843375,-551.17,0.00022191,2]
[322040084,1712713843384,-500.0,0.00022191,2]
[322040085,1712713843394,-727.01,0.00022191,2]
[322040086,1712713843410,-500.0,0.00022191,2]
[322040087,1712713843419,-500.0,0.00022191,2]
[322040088,1712713843427,-500.0,0.00022191,2]
[322040089,1712713843436,-500.0,0.00022191,2]
[322040090,1712713843446,-500.0,0.00022191,2]
[322040091,1712713843454,-500.0,0.00022191,2]
[322040092,1712713843463,-4076.7,0.00022191,2]
[322040093,1712713843473,-1346.46,0.00022191,2]
[322040094,1712713843482,-25242.55,0.00022191,2]
[322040095,1712713843491,-500.0,0.00022191,2]
[322040096,1712713843500,-500.0,0.00022191,2]
[322040097,1712713843509,-500.0,0.00022191,2]
[322040098,1712713843518,-3946.65,0.00022191,2]
[322040099,1712713843527,-2817.03,0.00022191,2]
[322040100,1712713843536,-500.0,0.00022191,2]
[322040101,1712713843545,-500.0,0.00022191,2]
[322040102,1712713843554,-5126.75,0.00022191,2]
[322040103,1712713843563,-2126.98,0.00022191,2]
[322040104,1712713843572,-500.0,0.00022191,2]
[322040105,1712713843581,-1412.53,0.00022191,2]
[322040106,1712713843590,-517.78,0.00022191,2]
[322040107,1712713843599,-896.71,0.00022191,2]
[322040108,1712713843608,-500.0,0.00022191,2]
[322040109,1712713843617,-500.0,0.00022191,2]
[322040110,1712713843626,-500.0,0.00022191,2]
[322040111,1712713843635,-500.0,0.00022191,2]
[322040112,1712713843644,-1779.15,0.00022191,2]
[322040113,1712713843653,-500.0,0.00022191,2]
[322040114,1712713843662,-501.59012115,0.00022191,2]
[322040115,1712713843671,-151.0,0.00022191,2]
[322040116,1712713843680,-497.82549668,0.00022191,2]
[322040117,1712713843689,-3102.45,0.00022191,2]
[322040118,1712713843697,-529.08634428,0.00022191,2]
[322040119,1712713843707,-500.0,0.00022191,2]
[322040120,1712713843716,-4520.79,0.00022191,2]
[322040121,1712713843724,-8740.37,0.00022191,2]
[322040122,1712713843733,-516.83,0.00022191,2]
[322040123,1712713843742,-1709.21,0.00022191,2]
[322040124,1712713843752,-153.556565,0.00022191,2]
[322040125,1712713843761,-2939.98,0.00022191,2]
[322040126,1712713843770,-500.0,0.00022191,2]
[322040127,1712713843780,-151.0,0.00022191,2]
[322040128,1712713843789,-8418.71,0.00022191,2]
[322040129,1712713843798,-3816.3,0.00022191,2]
[322040130,1712713843808,-202.7418102,0.000222,2]
[322040131,1712713843817,-202.7418102,0.000222,2]
[322040132,1712713843827,-202.7418102,0.000222,2]
[322040133,1712713843836,-202.7418102,0.000222,2]
[322040134,1712713843845,-550.70975,0.000222,2]
[322040135,1712713843854,-202.7418102,0.000222,2]
[322040136,1712713843865,-202.7418102,0.000222,2]
[322040137,1712713843875,-202.7418102,0.000222,2]
[322040138,1712713843885,-405.4836204,0.000222,2]
[322040139,1712713843895,-153.0,0.00022325,2]
[322040140,1712713843904,-153.0,0.00022325,2]
[322040141,1712713843914,-153.0,0.00022325,2]
[322040142,1712713843923,-159.85993103,0.00022365,2]
[322040143,1712713843932,-2098.42177965,0.00022365,2]
[322040144,1712713843943,-500.0,0.00022465,2]
[322040145,1712713843954,-954.71,0.00022465,2]
[322040146,1712713843963,-500.0,0.00022465,2]
[322040147,1712713843972,-598.39,0.00022465,2]
[322040148,1712713843981,-500.0,0.00022465,2]
[322040149,1712713843990,-505.62002415,0.00022465,2]
[322040150,1712713843998,-500.0,0.00022465,2]
[322040151,1712713844008,-531.22,0.00022465,2]
[322040152,1712713844016,-1511.38,0.00022465,2]
[322040153,1712713844025,-500.0,0.00022465,2]
[322040154,1712713844034,-500.0,0.00022465,2]
[322040155,1712713844043,-500.0,0.00022465,2]
[322040156,1712713844053,-500.0,0.00022465,2]
[322040157,1712713844062,-1542.66,0.00022465,2]
[322040158,1712713844071,-500.0,0.00022465,2]
[322040159,1712713844080,-500.0,0.00022465,2]
[322040160,1712713844089,-500.0,0.00022465,2]
[322040161,1712713844099,-736.34,0.00022465,2]
[322040162,1712713844108,-655.56,0.00022465,2]
[322040163,1712713844117,-507.82,0.00022465,2]
[322040164,1712713844128,-522.4,0.00022465,2]
[322040165,1712713844138,-500.0,0.00022465,2]
[322040166,1712713844147,-500.0,0.00022465,2]
[322040167,1712713844157,-500.0,0.00022465,2]
[322040168,1712713844167,-500.0,0.00022465,2]
[322040169,1712713844176,-500.0,0.00022465,2]
[322040170,1712713844187,-500.0,0.00022465,2]
[322040171,1712713844198,-500.0,0.00022465,2]
[322040172,1712713844209,-500.0,0.00022465,2]
[322040173,1712713844218,-500.0,0.00022465,2]
[322040174,1712713844229,-640.77,0.00022465,2]
[322040175,1712713844239,-500.0,0.00022465,2]
[322040176,1712713844248,-500.0,0.00022465,2]
[322040177,1712713844258,-500.0,0.00022465,2]
[322040178,1712713844267,-674.79,0.00022465,2]
[322040179,1712713844276,-917.47,0.00022465,2]
[322040180,1712713844285,-510.85,0.00022465,2]
[322040181,1712713844294,-751.55,0.00022465,2]
[322040182,1712713844303,-732.37,0.00022465,2]
[322040183,1712713844313,-500.0,0.00022465,2]
[322040184,1712713844322,-389.30063778,0.00022465,2]
[322040185,1712713844331,-500.0,0.00022465,2]
[322040186,1712713844340,-2365.23,0.00022465,2]
[322040187,1712713844349,-500.0,0.00022465,2]
[322040188,1712713844358,-1178.74,0.00022465,2]
[322040189,1712713844367,-500.0,0.00022465,2]
[322040190,1712713844375,-500.0,0.00022465,2]
[322040191,1712713844384,-734.7,0.00022465,2]
[322040192,1712713844394,-1169.42,0.00022465,2]
[322040193,1712713844406,-1153.08,0.00022465,2]
[322040194,1712713844416,-626.23,0.00022465,2]
[322040195,1712713844425,-2678.85,0.00022465,2]
[322040196,1712713844436,-500.0,0.00022465,2]
[322040197,1712713844445,-1262.83,0.00022465,2]
[322040198,1712713844454,-500.0,0.00022465,2]
[322040199,1712713844463,-500.0,0.00022465,2]
[322040200,1712713844473,-370.2948546,0.00022465,2]
[322040201,1712713844482,-876.86,0.00022465,2]
[322040202,1712713844493,-1007.79,0.00022465,2]
[322040203,1712713844502,-554.0,0.00022465,2]
[322040204,1712713844511,-740.16,0.00022465,2]
[322040205,1712713844520,-4154.44,0.00022465,2]
[322040206,1712713844529,-571.70716261,0.00022465,2]
[322040207,1712713844539,-694.97,0.00022465,2]
[322040208,1712713844548,-500.0,0.00022465,2]
[322040209,1712713844557,-2058.39,0.00022465,2]
[322040210,1712713844566,-500.0,0.00022465,2]
[322040211,1712713844575,-500.0,0.00022465,2]
[322040212,1712713844584,-500.0,0.00022465,2]
[322040213,1712713844593,-942.66,0.00022465,2]
[322040214,1712713844602,-507.41616511,0.00022465,2]
[322040215,1712713844611,-500.0,0.00022465,2]
[322040216,1712713844620,-500.0,0.00022465,2]
[322040217,1712713844630,-500.0,0.00022465,2]
[322040218,1712713844639,-1489.96,0.00022465,2]
[322040219,1712713844649,-500.0,0.00022465,2]
[322040220,1712713844660,-7963.74,0.00022465,2]
[322040221,1712713844718,-2660.44,0.00022465,2]
[322040222,1712713844727,-500.0,0.00022465,2]
[322040223,1712713844736,-1867.66,0.00022465,2]
[322040224,1712713844745,-2438.57,0.00022465,2]
[322040225,1712713844754,-23163.16,0.00022465,2]
[322040226,1712713844763,-294.81891454,0.00022465,2]
[322040227,1712713844772,-242.11010287,0.00022465,2]
[322040228,1712713844781,-4211.3,0.00022465,2]
[322040229,1712713844790,-1171.79,0.00022465,2]
[322040230,1712713844799,-895.69,0.00022465,2]
[322040231,1712713844809,-587.33,0.00022465,2]
[322040232,1712713844818,-500.0,0.00022465,2]
[322040233,1712713844827,-551.17,0.00022465,2]
[322040234,1712713844836,-727.01,0.00022465,2]
[322040235,1712713844846,-500.0,0.00022465,2]
[322040236,1712713844856,-500.0,0.00022465,2]
[322040237,1712713844866,-500.0,0.00022465,2]
[322040238,1712713844875,-500.0,0.00022465,2]
[322040239,1712713844885,-500.0,0.00022465,2]
[322040240,1712713844894,-500.0,0.00022465,2]
[322040241,1712713844903,-500.0,0.00022465,2]
[322040242,1712713844913,-4076.7,0.00022465,2]
[322040243,1712713844923,-1346.46,0.00022465,2]
[322040244,1712713844931,-25242.55,0.00022465,2]
[322040245,1712713844940,-500.0,0.00022465,2]
[322040246,1712713844949,-500.0,0.00022465,2]
[322040247,1712713844958,-500.0,0.00022465,2]
[322040248,1712713844967,-3946.65,0.00022465,2]
[322040249,1712713844975,-2817.03,0.00022465,2]
[322040250,1712713844984,-500.0,0.00022465,2]
[322040251,1712713844993,-500.0,0.00022465,2]
[322040252,1712713845002,-5126.75,0.00022465,2]
[322040253,1712713845011,-2126.98,0.00022465,2]
[322040254,1712713845021,-500.0,0.00022465,2]
[322040255,1712713845031,-1412.53,0.00022465,2]
[322040256,1712713845041,-517.78,0.00022465,2]
[322040257,1712713845050,-896.71,0.00022465,2]
[322040258,1712713845059,-516.85206975,0.00022465,2]
[322040259,1712713845068,-298.02552975,0.00022465,2]
[322040260,1712713845077,-500.0,0.00022465,2]
[322040261,1712713845086,-500.0,0.00022465,2]
[322040262,1712713845096,-1779.15,0.00022465,2]
[322040263,1712713845105,-500.0,0.00022465,2]
[322040264,1712713845114,-151.0,0.00022465,2]
[322040265,1712713845123,-209.645799,0.00022465,2]
[322040266,1712713845133,-3102.45,0.00022465,2]
[322040267,1712713845142,-500.0,0.00022465,2]
[322040268,1712713845152,-4520.79,0.00022465,2]
[322040269,1712713845162,-8740.37,0.00022465,2]
[322040270,1712713845171,-516.83,0.00022465,2]
[322040271,1712713845180,-1709.21,0.00022465,2]
[322040272,1712713845284,-2939.98,0.00022465,2]
[322040273,1712713845295,-500.0,0.00022465,2]
[322040275,1712713845304,-254.268,0.00022465,2]
[322040277,1712713845313,-8418.71,0.00022465,2]
[322040278,1712713845322,-3816.3,0.00022465,2]
[322040279,1712713845331,-202.7924704,0.000225,2]
[322040280,1712713845339,-353.9042857,0.000225,2]
[322040281,1712713845348,-202.7418102,0.000225,2]
[322040282,1712713845357,-202.7418102,0.000225,2]
[322040283,1712713845367,-3120.14442879,0.0002251,2]
[322040284,1712713845376,-162.87884974,0.00022737,2]
[322040285,1712713845384,-1320.55400456,0.00022738,2]
[322040286,1712713845398,-500.0,0.00022739,2]
[322040287,1712713845406,-954.71,0.00022739,2]
[322040288,1712713845416,-500.0,0.00022739,2]